Cogmind - Beta 17.1 @@@ ROGUE MODE // 2026.09.08 @ 18:10:55 Player: 4R-ZE3 Result: Destroyed by YI-UF0 with YI-UF0's Doublenader Performance ------------- Evolutions (0) 0 Regions Visited (2) 400 Robots Destroyed (22) 110 Value Destroyed (455) 455 Prototype IDs (1) 20 Alien Tech Used (0) 0 Bonus (0) 0 TOTAL SCORE: 985 Bonus ------- None Cogmind --------- Core Integrity 0/250 Matter 300/300 Energy 44/100 System Corruption 0% Temperature Hot (211) Movement Core (800) Ox15 Location -10/Mines Parts ------- > --- POWER (1) -------- (None) > --- PROPULSION (2) --- (None) > --- UTILITY (2) ------ High-capacity Storage Unit > --- WEAPON (2) ------- Particle Gun Particle Cannon > --- INVENTORY (20) --- Light Treads Heat Sink Heat Sink Large Storage Unit Structural Scanner Beam Rifle Beam Rifle Beam Rifle Beam Rifle Beam Cannon Particle Cannon Particle Cannon Particle Cannon Slug Cannon Grenade Launcher Peak State ------------ > --- POWER ------------ Ion Engine > --- PROPULSION ------- Light Treads Light Treads > --- UTILITY ---------- Large Storage Unit Sensor Drone Bay > --- WEAPON ----------- Particle Gun Particle Gun > --- INVENTORY -------- Light Ion Engine Light Treads Heat Sink Medium Storage Unit Structural Scanner Beam Rifle Beam Rifle Beam Rifle Beam Rifle Beam Cannon Particle Cannon Particle Cannon Particle Cannon Particle Cannon Grenade Launcher [Rating: 18] Favorites ----------- Power Ion Engine Engine Ion Engine Propulsion Light Treads Treads Light Treads Utility Heat Sink Device Heat Sink Storage Small Storage Unit Weapon Particle Gun Energy Gun Particle Gun Energy Cannon Particle Cannon Ballistic Gun Assault Rifle Launcher Grenade Launcher Build | -11 -10 -10 ------- Run | Yrd Mat Min Slots Evolved . | . . . Power . | . . . Propulsion . | . . . Utility . | . . . Weapon . | . . . Parts Attached 18 | 6 8 4 Power 2 | 1 . 1 Engine 2 | 1 . 1 Core . | . . . Reactor . | . . . Propulsion 3 | 2 1 . Treads 3 | 2 1 . Leg . | . . . Wheel . | . . . Hover . | . . . Flight . | . . . Utility 7 | 1 4 2 Device 3 | . 2 1 Storage 4 | 1 2 1 Processor . | . . . Hackware . | . . . Protection . | . . . Artifact . | . . . Weapon 6 | 2 3 1 Energy Gun 2 | . 2 . Energy Cannon 1 | . . 1 Ballistic Gun 2 | 2 . . Ballistic Cannon . | . . . Launcher 1 | . 1 . Special Weapon . | . . . Impact Weapon . | . . . Slashing Weapon . | . . . Piercing Weapon . | . . . Special Melee Weapon . | . . . Unidentified Prototypes 1 | . . 1 Parts Lost 6 | . . 6 Power 2 | . . 2 Propulsion 2 | . . 2 Utility 1 | . . 1 Weapon 1 | . . 1 Highest Loss Streak 6 | . . 6 To Critical Strikes . | . . . Average Backups 11 | 1 8 15 Power . | . 1 . Propulsion . | . . 1 Utility 2 | . 1 3 Weapon 7 | . 5 10 Tool/Special . | . . . Unused Backups 12 | . 1 11 Power . | . . . Propulsion 1 | . . 1 Utility 2 | . . 2 Weapon 9 | . 1 8 Tool/Special . | . . . Average Slot Usage (%) 98 | . 99 98 Engine 13 | . 14 13 Treads 27 | . 28 27 Device 13 | . 13 13 Storage 14 | . 14 14 Energy Gun 21 | . 17 27 Ballistic Gun 6 | . 9 . Peak Build Rating 18 | 6 11 18 Average Rating 9 | 4 8 10 On Entrance 5 | . 6 11 Avg Prop Armor Cover (%) . | . . . Naked Turns . | . . . Heaviest Build 52 | 13 32 52 Greatest Support 40 | 40 40 40 Greatest Overweight (x) 2 | 2 . 1 Average Overweight (x) . | . . . Largest Inventory Capacity 20 | 8 15 20 Average Capacity 13 | 5 10 18 Most Carried 17 | 3 15 17 Average Carried 11 | 1 8 15 Final Capacity 20 | 8 15 20 Final Carried 15 | 2 15 15 Class Distribution -------------------- 65% | Scavenger-Mutant 34% | Mutant Dominant Class ---------------- Mutant | -10/Materials Scavenger-Mutant | -10/Mines Resources | -11 -10 -10 ----------- Run | Yrd Mat Min Matter Collected 500 | 166 304 30 Remotely . | . . . Salvage Created 618 | . 533 85 Parts 49 | . 39 10 Haulers Intercepted 2 | . 2 . Recyclers Shooed 2 | . 2 . Parts Field Recycled . | . . . Retrieved Matter . | . . . Parts Self-Destructed . | . . . Prevented . | . . . Parts Restored . | . . . Kills | -11 -10 -10 ------- Run | Yrd Mat Min Combat Hostiles Destroyed 18 | . 13 5 Guns 18 | . 13 5 Classes Destroyed 5 | . 4 1 Worker 1 | . 1 . Tunneler 1 | . . 1 Hauler 2 | . 2 . Swarmer 8 | . 3 5 Grunt 10 | . 10 . Best Kill Streak 7 | . 7 3 Combat Bots Only 7 | . 7 2 Max Kills in Single Turn 1 | . 1 1 Gunslinging . | . . . Exploded . | . . . Melee . | . . . Uniques/NPCs Destroyed . | . . . Combat | -11 -10 -10 -------- Run | Yrd Mat Min Hostile Shots Fired 99 | . 51 48 Missed 33 | . 17 16 Hits 66 | . 34 32 Projectile 66 | . 34 32 AOE 15 | . . 15 Damage Taken 1038 | . 398 640 Core 271 | . 78 193 Absorbed by Shields . | . . . Core Remaining (%) 100 | 100 . . Volleys Fired 69 | . 50 19 Largest 2 | . 2 2 Hottest 133 | . 130 133 Shots Fired 137 | . 99 38 Gun 131 | . 98 33 Cannon 5 | . . 5 Launcher 1 | . 1 . Special . | . . . Kinetic 60 | . 60 . Thermal 76 | . 38 38 Explosive 1 | . 1 . Electromagnetic . | . . . Robot Hit Streak 23 | . 23 6 Robot Miss Streak 3 | . 2 3 Penetration Max . | . . . Secondary Targets 4 | . 2 2 Max Gunslinging Chain 1 | . 1 1 Shots Hit Robots 95 | . 69 26 Core Hits 37 | . 30 7 Critical Kills . | . . . Critical Parts Destroyed . | . . . Critical Strikes 4 | . 2 2 Burn 4 | . 2 2 Melee Attacks . | . . . Impact . | . . . Slashing . | . . . Piercing . | . . . Sneak Attacks . | . . . Combat Hostiles . | . . . Follow-up Attacks . | . . . Damage Inflicted 1392 | . 942 450 Guns 1266 | . 898 368 Cannons 82 | . . 82 Explosions 40 | . 40 . Melee . | . . . Ramming 4 | . 4 . Kinetic 508 | . 508 . Thermal 840 | . 390 450 Explosive 40 | . 40 . Electromagnetic . | . . . Impact . | . . . Slashing . | . . . Piercing . | . . . Highest Corruption . | . . . Average Corruption . | . . . Corruption Purged . | . . . Corruption Blocked . | . . . Overload Shots . | . . . Overflow Damage . | . . . Projectiles . | . . . Explosions . | . . . Melee . | . . . Knockbacks . | . . . Impact . | . . . Kinetic . | . . . Secondary . | . . . Self-Inflicted Damage . | . . . Shots . | . . . Rammed 3 | . 3 . Targets Rammed 3 | . 3 . Kicked . | . . . Crushed . | . . . Highest Temperature 211 | . 162 211 Average Temperature 59 | . 51 70 Received Heat Transfer 177 | . 162 15 Siege Activations . | . . . Martial Activations . | . . . Shielding Activations . | . . . Robots Disrupted . | . . . Combat Hostiles . | . . . Robots Corrupted . | . . . Combat Hostiles . | . . . Parts Fried . | . . . Impact Corruptions . | . . . Robots Melted . | . . . Combat Hostiles . | . . . Parts Melted 2 | . 1 1 Heat Transferred 2220 | . 1073 1147 Parts Sabotaged . | . . . Parts Stolen . | . . . Parts Stripped . | . . . Power Chain Reactions . | . . . Alert | -11 -10 -10 ------- Run | Yrd Mat Min Maximum Alert Level . | . . . Low Security (%) 100 | 100 100 100 Level 1 . | . . . Level 2 . | . . . Level 3 . | . . . Level 4 . | . . . Level 5 . | . . . High Security . | . . . Max Security . | . . . Peak Influence 155 | . 155 69 Initial 5 | . . 5 Average 50 | . 74 15 Influence Increases 612 | . 442 170 Destroy 0b10 Robot/C 360 | . 260 100 Destroy 0b10 Robot/NC 20 | . 15 5 Destroy Leader 84 | . 64 20 Successful Hack 15 | . 15 . Select Force Hacks 60 | . 60 . Disable Machine 15 | . 15 . Destroy Structure 13 | . 13 . Lose Combat Pursuer 45 | . . 45 Influence Decreases 612 | . 427 185 Entered New Map 10 | . . 10 Time Decay 602 | . 427 175 Squads Dispatched 4 | . 4 . Investigation 2 | . 2 . Extermination . | . . . Reinforcement 2 | . 2 . Assault . | . . . Garrison . | . . . Intercept . | . . . Searches Triggered . | . . . Construction Impeded . | . . . Haulers Reinforced . | . . . Active Scanning Responses . | . . . Cargo Convoy Interrupts . | . . . Stealth | -11 -10 -10 --------- Run | Yrd Mat Min Distress Signals . | . . . Communications Jammed . | . . . Distress Signals . | . . . Times Spotted 34 | . 25 9 Peak Tracking Total 4 | . 4 3 Tactical Retreats 2 | . . 2 Traps | -11 -10 -10 ------- Run | Yrd Mat Min Traps Triggered 1 | . 1 . Indirectly . | . . . Trap Hack Attempts . | . . . Triggered . | . . . Disarmed . | . . . Reprogrammed . | . . . Reused . | . . . Traps Extracted . | . . . Installed . | . . . Triggered . | . . . Machines | -11 -10 -10 ---------- Run | Yrd Mat Min Machines Disabled 1 | . 1 . Max in Single Turn 1 | . 1 . Machines Repaired . | . . . Machines Dismantled . | . . . Machines Sabotaged . | . . . Overloaded Fab Kills . | . . . Hacking | -11 -10 -10 --------- Run | Yrd Mat Min Machines Accessed 8 | . 7 1 Terminals 5 | . 5 . Fabricators . | . . . Repair Stations . | . . . Recycling Units 2 | . 2 . Scanalyzers . | . . . Garrison Access . | . . . Total Hacks 15 | . 14 1 Successful 7 | . 6 1 Failed 8 | . 8 . Catastrophic 1 | . 1 . Database Lockouts . | . . . Manual 15 | . 15 . Terminals 12 | . 12 . Fabricators . | . . . Repair Stations . | . . . Recycling Units 2 | . 2 . Scanalyzers . | . . . Garrison Access . | . . . Terminal Hacks 4 | . 3 1 Robot Analysis 2 | . 2 . Open Door 1 | . . 1 Recycling Unit Index 1 | . 1 . Fabricator Hacks . | . . . Repair Station Hacks . | . . . Recycling Unit Hacks . | . . . Scanalyzer . | . . . Garrison Access Hacks . | . . . Unauthorized Hacks 3 | . 3 . Terminals 1 | . 1 . Botnet 1 | . 1 . Fabricators . | . . . Repair Stations . | . . . Recycling Units 2 | . 2 . Tunnel 2 | . 2 . Scanalyzers . | . . . Garrison Access . | . . . Data Cores Recovered . | . . . Used . | . . . Hacking Detections 5 | . 5 . Full Trace Events . | . . . Feedback Events . | . . . Feedback Blocked . | . . . Robot Schematics Acquired . | . . . Robots Built . | . . . Authchips . | . . . Time . | . . . Total Robot Build Rating . | . . . Part Schematics Acquired . | . . . Parts Built . | . . . Authchips . | . . . Time . | . . . Total Part Build Rating . | . . . Part Studies Acquired . | . . . Parts Repaired . | . . . Time . | . . . Parts Recycled . | . . . Recycled Matter . | . . . Retrieved Matter . | . . . Retrieved Components . | . . . Parts Scanalyzed . | . . . Part Schematics Acquired . | . . . Parts Damaged . | . . . Bothacking | -11 -10 -10 ------------ Run | Yrd Mat Min Used RIF Installer . | . . . Robots Hacked . | . . . Non-combat . | . . . Combat . | . . . Robot Hacks Applied . | . . . Relay Couplers Released . | . . . Fabnet Peak Effective % . | . . . Robots Rewired . | . . . Allies Hacked . | . . . Hacks Repelled . | . . . Allies | -11 -10 -10 -------- Run | Yrd Mat Min Total Allies . | . . . Largest Group . | . . . Highest-Rated Group . | . . . Highest-Rated Ally . | . . . Total Orders . | . . . Ally Attacks . | . . . Total Damage . | . . . Kills . | . . . Allies Corrupted . | . . . Allies Melted . | . . . Intel | -11 -10 -10 ------- Run | Yrd Mat Min Active Infowar (turns) 371 | . 371 . Structural 371 | . 371 . Robot Analysis Total 2 | . 2 . Derelict Logs Recovered 2 | . . 2 Drone Launches . | . . . Drone Recoveries . | . . . Exploration | -11 -10 -10 ------------- Run | Yrd Mat Min Turns Passed 2060 | 57 1243 760 Spaces Moved 1018 | 31 651 336 Core 6 | 6 . . Treads 1012 | 25 651 336 Legs . | . . . Wheels . | . . . Hover . | . . . Flight . | . . . Fastest Speed 50 | 50 160 160 Average Speed 173 | 150 160 201 Slowest Speed 240 | 160 160 240 Overloaded Moves . | . . . Propulsion Burnouts . | . . . Robots Hopped . | . . . Potential Cave-ins . | . . . Cave-ins Triggered . | . . . Exploration Rate (%) 61 | 3 93 87 Regions Visited 2 Branch Regions 1 Pre-discovered Areas 3 | . 2 1 Known Exits Taken . | . . . Unknown Exits Taken 2 | 1 1 . Scrap Searched 1 | . . 1 Spaces Dug . | . . . Terrain Destroyed 11 | . 10 1 Melee . | . . . Projectile 1 | . . 1 AOE 10 | . 10 . Terrain Rammed . | . . . Walls Destroyed . | . . . Machines Disabled . | . . . Actions | -11 -10 -10 --------- Run | Yrd Mat Min Total 1181 | 39 757 385 Wait 45 | . 25 20 Move 1016 | 30 650 336 Hop . | . . . Pick Up 19 | 3 14 2 Fast Attach 9 | 5 2 2 Attach 3 | 1 . 2 Detach 1 | . 1 . Swap 8 | . 7 1 Drop 8 | . 5 3 Fire 69 | . 50 19 Melee . | . . . Ram . | . . . Kick . | . . . Crush 3 | . 3 . Escape Stasis . | . . . Rewire . | . . . Trap . | . . . Miscellaneous . | . . . Route ------- -11/Scrapyard -10/Materials (discovered 5 exits: [*Mat x3] / *Min / [*Sub]) -10/Mines (discovered 3 exits: [*Mat x2] / [*Sub]) History --------- Turn | Location | Event 6 | -11/Scrapyard | Discovered new exit (range 15) 58 | -11/Scrapyard | Entered Materials 270 | -10/Materials | Destroyed 7 combat bots 302 | -10/Materials | Build established: Mutant 418 | -10/Materials | Discovered new exit (range 14) 434 | -10/Materials | Discovered new exit (range 9) 529 | -10/Materials | Discovered new exit (range 9) 759 | -10/Materials | Discovered new exit (range 16) 873 | -10/Materials | Discovered new exit (range 16) 1030 | -10/Materials | Build established: Scavenger-Mutant 1301 | -10/Materials | Entered Mines 1314 | -10/Mines | Found the Drone Emporium 1326 | -10/Mines | Found Prototype Device 1326 | -10/Mines | Identified Sensor Drone Bay 1358 | -10/Mines | Learned 2 Materials zone layouts 1541 | -10/Mines | Found a hidden stash of uninstalled traps 1595 | -10/Mines | Discovered new exit (range 5) 1635 | -10/Mines | Learned location of Zion (-6) 1642 | -10/Mines | Discovered new exit (range 5) 1677 | -10/Mines | Discovered new exit (range 13) 2035 | -10/Mines | A weapon hastily lodged in a ceiling crevice suddenly fell to the ground 2044 | -10/Mines | Core integrity fell below 50% 2056 | -10/Mines | Core integrity fell below 20% 2061 | -10/Mines | Destroyed by YI-UF0 with YI-UF0's Doublenader Last Messages --------------- 01717_ S-10 Pest destroyed. 01717_ Switching to secondary target: S-10 Pest. 01720_ S-10 Pest destroyed. 01727_ Acquired 10 matter. 01905_ K-01 Serf collects debris. 02019_ The unstable cave ceiling collapses. 02035_ A Slug Cannon has been hastily shoved under some rubble with a note attached: "It's not as slow as it sounds." 02039_ Lgt. Treads destroyed. 02040_ Acquired Slug Cannon. 02043_ Ion Engine destroyed. 02045_ Lgt. Treads destroyed. 02046_ YI-UF0 mumbles something. 02047_ Particle Gun destroyed. 02051_ YI-UF0 mumbles something. 02054_ The unstable cave ceiling collapses. 02055_ Heat Sink destroyed. 02055_ Lgt. Ion Engine destroyed. 02056_ The unstable cave ceiling collapses. Map ----- +----------------------------------------------------+ | ?# #???????????????????????????????#### #? | | ## ##???????????????????????####????# #? | | # #????????????????????##### ###??# #? | | # #??????????????####### ##?# ####? | | ## #???????????# #?# #???? | | ?###### #?????????????????### ### #???? | | ??????# #???????????????????# ## #???? | | #?????# #??????????????????# #### #???# | | ##????# ##????????????????# #???## ##### | | #???## ##????????????? ?????## | | #??## ##?????????? """ ???????# | | #??# ##?????????? " ???????## #### | | ##### ##?????????? ????????## ##??# | | ## ##????????? ????????## ##???# | | ## ######??? ???????## ##????# | | ## ### ## #??## ????????# ##?????# | | #?## # # #### ###???????## #??????? | | ####?## #? #????????## #??????? | | ###### %* # ## #???####### #??????? | | =%= % [* # #???# #??????? | | ####### [ # =# #???# ##### #??????? | | ??????######## # g #?????????# #??????? | | ?????????????? # #?????????# #??????? | | ??????????????? ##### #???# #??????? | | ??????????????? ## #??## #??????? | | ??????????????? ### @ #??????## ##?????? | | ????????????????##### #?????## #?????? | | ??????????????????## ### #?????? | | ??????????????????# #?????? | | ??????????????????# #?????? | | ??????????????????## # # #?????? | | ???????????????????## # #?????? | | ???????????????????? ## ##?????? | | ???????????????????# # ##### ##?????? | | ???????????????????## #?# ##????? | | ????????????????????# #### ### #????? | | ????????????????????##########??# #???? | | ????????????????????????????????##### ##???? | | ????????????????????????????????????# ####????? | | ????????????????????????????????????## ##???????? | | ?????????????????????????????????????####????????? | | ?????????????????????????????????????????????????? | | ?????????????????????????????????????????????????? | | ?????????????????????????????????????????????????? | | | | | | | | | | | | | +----------------------------------------------------+ Best States ------------- Heat Dissipation 35 Energy Generation 10 Energy Capacity 250 Matter Stores 300 Matter Capacity 300 Sight Range 16 Terrain Scan Density 10 Evasion (%) 40 Recoil Reduction 2 Item Schematics ----------------- None Robot Schematics ------------------ None Fabricated ------------ Nothing Repaired ---------- Nothing Studied --------- None Alien Tech Used ----------------- None Achievements -------------- None Challenges ------------ None Game ------ Seed MicrowarpSignalLauncher Manual? 0 Play Time 00:11:05 Cumulative 353.8 hours Start 2026.09.08 @ 18:02:17 End 2026.09.08 @ 18:10:55 Sessions 1 Manual Loads 0 Difficulty Rogue Special Mode None Game No. 332 Rogue 278 Adventurer 54 Explorer 0 Win Type - Total 18 Types 12/1/1/1/1/0/0/1/0/1 Lore% 81 Gallery% 69 Achievement% 66 Wizard Run 0 Options --------- Layout 1 ASCII 0 Keyboard 0 Movement Mouse Keybinds 1 Fullscreen 2 Font 32/Tamsyn Map View 50x35 Zoom Use 0% Tactical HUD 1 Map Filters NONE Filters NONE Steam 1 RUN: 75d0ec93-f2c8-413f-a3d5-1a47fd782e48